bitfinex-derivatives/quotes_SOLF0:USTF0_20250705
["timestamp","ask_amount","ask_price","bid_price","bid_amount"]
[1751704531364,6.7911,147.22,147.19,13.54710109]
[1751704531567,5.8368418,147.21,147.19,13.54710109]
[1751704531770,6.7911,147.22,147.19,13.54710109]
[1751704532070,5.83736992,147.21,147.19,13.54710109]
[1751704532369,6.7911,147.22,147.19,13.54710109]
[1751704532564,5.83878187,147.21,147.19,11.18649619]
[1751704532764,6.7911,147.22,147.19,11.18649619]
[1751704532969,5.83367042,147.21,147.19,11.18649619]
[1751704533275,6.7911,147.22,147.19,11.18649619]
[1751704533477,5.83556535,147.21,147.19,11.18649619]
[1751704533677,6.7911,147.22,147.19,11.18649619]
[1751704533973,5.83514643,147.21,147.19,11.18649619]
[1751704534175,6.7911,147.22,147.19,11.18649619]
[1751704534374,5.83514643,147.21,147.19,11.18649619]
[1751704534576,6.7911,147.22,147.19,11.18649619]
[1751704534778,5.83671942,147.21,147.19,11.18649619]
[1751704535075,6.7914,147.21,147.19,11.18649619]
[1751704535577,6.7911,147.22,147.19,11.18649619]
[1751704535776,5.83866396,147.21,147.19,11.18649619]
[1751704535977,6.7911,147.22,147.19,11.18649619]
[1751704536179,5.83944775,147.21,147.19,11.18649619]
[1751704536477,5.84096725,147.2,147.19,11.18649619]
[1751704539181,5.84096725,147.2,147.19,13.54772843]
[1751704539478,6.27942784,147.24,147.21,6.7913]
[1751704539682,5.83674961,147.23,147.22,2.36123224]
[1751704541178,5.83674961,147.23,147.22,9.15203224]
[1751704541381,73.02815084,147.28,147.22,2.36123224]
[1751704541677,73.02815084,147.28,147.25,2.36123224]
[1751704541981,6.7886,147.27,147.25,2.36123224]
[1751704546484,6.7886,147.27,147.24,6.79]
[1751704546674,6.7886,147.27,147.25,2.36123224]
[1751704547179,6.7891,147.26,147.24,2.36123224]
[1751704547783,6.7895,147.25,147.23,9.15143224]
[1751704551483,6.7892,147.26,147.23,9.15143224]
[1751704552587,6.7892,147.26,147.24,2.36123224]
[1751704552784,6.7892,147.26,147.23,6.7902]
[1751704553085,6.7892,147.26,147.24,2.36123224]
[1751704553385,5.83545747,147.25,147.24,2.36123224]
[1751704557983,5.83545747,147.25,147.23,6.7902]
[1751704558190,6.7892,147.26,147.24,2.36123224]
[1751704558488,5.829156,147.25,147.24,2.36123224]
[1751704559089,6.7892,147.26,147.24,2.36123224]
[1751704559385,5.82898138,147.25,147.24,2.36123224]
[1751704561187,5.82898138,147.25,147.23,6.7902]
[1751704561492,6.7892,147.26,147.24,2.36123224]
[1751704561793,5.82837285,147.25,147.23,6.7902]
[1751704562090,6.7892,147.26,147.23,6.7902]
[1751704562292,5.82847571,147.25,147.24,2.36123224]
[1751704564289,12.61797571,147.25,147.22,204.15193224]
[1751704564593,5.82847571,147.24,147.22,204.15193224]
[1751704564889,6.7895,147.25,147.22,204.15193224]
[1751704565087,5.83334651,147.24,147.22,204.15193224]
[1751704565284,6.7895,147.25,147.22,204.15193224]
[1751704565489,5.83361284,147.24,147.22,204.15193224]
[1751704565787,6.7895,147.25,147.22,204.15193224]
[1751704565988,5.83333833,147.24,147.22,204.15193224]
[1751704566188,6.7895,147.25,147.22,204.15193224]
[1751704566390,5.83360493,147.24,147.22,204.15193224]
[1751704566589,6.7895,147.25,147.22,204.15193224]
[1751704566888,5.83333451,147.24,147.22,204.15193224]
[1751704567090,6.7895,147.25,147.22,204.15193224]
[1751704567294,5.83360545,147.24,147.22,204.15193224]
[1751704567489,6.7895,147.25,147.22,204.15193224]
[1751704567690,5.83333504,147.24,147.22,9.15193224]
[1751704567885,6.7895,147.25,147.22,9.15193224]
[1751704568090,5.83334147,147.24,147.22,9.15193224]
[1751704568286,6.7895,147.25,147.22,9.15193224]
[1751704568491,5.83360857,147.24,147.22,9.15193224]
[1751704568695,6.7895,147.25,147.22,9.15193224]
[1751704568898,5.83306115,147.24,147.22,9.15193224]
[1751704569196,6.7895,147.25,147.22,9.15193224]
[1751704569394,5.82752507,147.24,147.22,9.15193224]
[1751704569594,6.7895,147.25,147.22,9.15193224]
[1751704569796,5.82728247,147.24,147.22,9.15193224]
[1751704569993,6.79,147.24,147.22,6.7907]
[1751704570194,6.79,147.24,147.22,9.15193224]
[1751704570696,6.79,147.24,147.22,6.7907]
[1751704571195,5.8272118,147.23,147.22,6.7907]
[1751704572892,5.8272118,147.23,147.21,247.7912]
[1751704573098,6.79,147.24,147.21,52.8712]
[1751704573396,5.82769949,147.23,147.21,250.15243224]
[1751704573595,6.7905,147.23,147.21,46.08]
[1751704573800,5.82713572,147.22,147.2,201.7516]
[1751704573989,6.7905,147.23,147.2,201.7516]
[1751704574188,5.82131206,147.22,147.2,201.7516]
[1751704574388,5.82131206,147.21,147.2,204.11283224]
[1751704574900,8.65756149,147.25,147.2,204.11283224]
[1751704574901,8.65756149,147.25,147.21,6.7913]
[1751704575200,6.7907,147.23,147.2,197.42123224]
[1751704575402,5.82179784,147.22,147.2,204.21283224]
[1751704575695,6.7907,147.23,147.2,204.21283224]
[1751704575901,5.82208832,147.22,147.21,6.7912]
[1751704576403,5.82208832,147.22,147.2,204.21283224]
[1751704576595,6.7905,147.23,147.2,204.21283224]
[1751704576790,5.82261559,147.22,147.2,204.21283224]
[1751704577100,6.7905,147.23,147.2,204.21283224]
[1751704577302,5.82239783,147.22,147.2,204.21283224]
[1751704577501,6.7905,147.23,147.2,204.21283224]
[1751704577691,5.82290431,147.22,147.2,204.21283224]
[1751704578001,6.7905,147.23,147.2,204.23283224]
[1751704578201,5.82290431,147.22,147.2,204.23283224]
[1751704578401,6.7905,147.23,147.2,204.23283224]
[1751704578596,5.82347465,147.22,147.2,204.23283224]
[1751704578900,6.7905,147.23,147.2,204.23283224]
[1751704579106,5.82347465,147.22,147.2,204.23283224]
[1751704579303,6.7905,147.23,147.2,204.23283224]
[1751704579602,5.81241383,147.22,147.2,204.23283224]
[1751704579804,6.7905,147.23,147.2,204.23283224]
[1751704579995,5.81241383,147.22,147.2,204.23283224]
[1751704580198,6.7905,147.23,147.2,204.23283224]
[1751704580403,5.81239103,147.22,147.2,204.23283224]
[1751704580700,6.7905,147.23,147.2,204.23283224]
[1751704580903,5.81303377,147.22,147.21,2.36123224]
[1751704581501,5.81303377,147.22,147.21,9.15263224]
[1751704584909,13.08552925,147.26,147.23,6.7902]
[1751704585105,10.45795301,147.25,147.23,9.15143224]
[1751704585309,5.82204751,147.24,147.23,9.15143224]
[1751704585609,5.82204751,147.24,147.22,6.7907]
[1751704585811,5.82204751,147.23,147.22,6.7907]
[1751704586909,5.82204751,147.23,147.22,9.15193224]
[1751704588106,5.82204751,147.23,147.22,2.36123224]
[1751704593326,12.61244751,147.23,147.22,2.36123224]
[1751704594022,12.61244751,147.23,147.21,6.7911]
[1751704594225,6.29632925,147.25,147.2,241.2]
[1751704594226,12.61324751,147.22,147.2,243.56123224]
[1751704594426,5.82204751,147.21,147.2,46.12]
[1751704594621,12.61344751,147.21,147.19,201.91562843]
[1751704594820,6.7914,147.21,147.19,6.75562843]
[1751704595121,5.85689612,147.2,147.19,6.75562843]
[1751704595623,5.85689612,147.2,147.19,13.54792843]
[1751704598020,5.85689612,147.2,147.19,6.75562843]
[1751704598226,5.85689612,147.2,147.19,4.39439619]
[1751704603831,5.85689612,147.2,147.19,11.18669619]
[1751704604126,5.85689612,147.2,147.19,13.54792843]
[1751704605232,13.08612925,147.25,147.19,6.75562843]
[1751704605432,4.59153668,147.24,147.23,2.36123224]
[1751704607036,4.59153668,147.24,147.23,9.15163224]
[1751704607937,4.59153668,147.24,147.22,6.7907]
[1751704608134,13.08612925,147.25,147.23,2.36123224]
[1751704608340,4.59285586,147.24,147.22,6.7907]
[1751704608539,13.08612925,147.25,147.23,2.36123224]
[1751704608838,4.59285586,147.24,147.23,2.36123224]
[1751704612139,4.62383723,147.24,147.23,2.36123224]
[1751704613544,11.41383723,147.24,147.23,2.36123224]
[1751704614342,17.71781745,147.24,147.22,9.15193224]
[1751704614543,13.09398022,147.24,147.22,9.15193224]
[1751704615135,13.09398022,147.24,147.21,195.12]
[1751704615335,8.66521246,147.24,147.21,195.12]
[1751704615537,4.62435713,147.23,147.21,195.12]
[1751704615733,4.62393323,147.22,147.21,195.12]
[1751704616138,4.62393323,147.22,147.2,9.15283224]
[1751704616345,6.30398022,147.23,147.2,9.15283224]
[1751704616638,4.62398011,147.22,147.2,9.15283224]
[1751704616840,6.30398022,147.25,147.21,9.15263224]
[1751704617043,6.91359917,147.24,147.21,9.15263224]
[1751704617245,10.4524806,147.23,147.21,6.7914]
[1751704617542,5.82798269,147.22,147.21,9.15263224]
[1751704619841,5.82798269,147.22,147.19,11.18629619]
[1751704620045,5.82798269,147.21,147.19,6.75549334]
[1751704620246,5.82798269,147.2,147.19,6.75549334]
[1751704620447,5.82798269,147.2,147.19,13.54729334]
[1751704621250,5.82798269,147.2,147.19,4.39439619]
[1751704621452,10.46153587,147.2,147.19,4.39439619]
[1751704621647,12.61978269,147.2,147.19,4.39439619]
[1751704625157,12.61978269,147.2,147.19,4.39439619]
[1751704627060,17.2490392,147.2,147.19,4.39439619]
[1751704627758,10.4572392,147.2,147.19,4.39439619]
[1751704628462,17.2490392,147.2,147.19,4.39439619]
[1751704629360,10.4572392,147.2,147.19,4.39439619]
[1751704629561,5.82798269,147.2,147.19,4.39439619]
[1751704630463,17.22700903,147.2,147.19,4.39439619]
[1751704631363,17.22675361,147.2,147.19,4.39439619]
[1751704632665,10.43495361,147.2,147.19,4.39439619]
[1751704632862,5.82798269,147.2,147.19,4.39439619]
[1751704633760,12.61978269,147.2,147.19,4.39439619]
[1751704634366,17.19959553,147.2,147.19,4.39439619]
[1751704636063,6.7931,147.18,147.15,9.15509715]
[1751704636267,5.82798269,147.17,147.14,46.2]
[1751704636567,5.82798269,147.16,147.15,2.36262106]
[1751704636967,5.82798269,147.16,147.14,52.9943]
[1751704637167,6.7934,147.17,147.15,2.36262106]
[1751704637363,5.78712191,147.16,147.15,2.36262106]
[1751704637563,12.58082191,147.16,147.14,46.2]
[1751704637865,6.7937,147.16,147.14,48.56262106]
[1751704638664,6.7934,147.17,147.14,48.56262106]
[1751704638863,5.78636086,147.16,147.14,46.2]
[1751704639064,6.30398022,147.19,147.15,2.36262106]
[1751704639368,12.57951769,147.18,147.15,9.15632106]
[1751704639567,5.78671769,147.17,147.15,2.36262106]
[1751704639766,2.36262106,147.2,147.14,46.2]
[1751704639966,12.57904626,147.19,147.16,9.15632106]
[1751704640165,5.78654626,147.18,147.16,9.15632106]
[1751704640366,5.78654626,147.17,147.16,6.7937]
[1751704643068,5.78654626,147.17,147.16,9.15632106]
[1751704644669,6.792,147.2,147.17,6.7932]
[1751704644869,5.79555964,147.19,147.17,6.7932]
[1751704645068,5.79555964,147.18,147.17,6.7932]
[1751704646271,5.79555964,147.18,147.16,2.36262106]
[1751704646272,5.79555964,147.18,147.16,9.15602106]
[1751704646461,6.7924,147.19,147.16,9.15602106]
[1751704646666,5.77764397,147.18,147.16,9.15602106]
[1751704646862,6.7924,147.19,147.16,9.15602106]
[1751704647069,5.77754859,147.18,147.16,9.15602106]
[1751704647265,6.7924,147.19,147.16,9.15602106]
[1751704647469,5.77725239,147.18,147.16,9.15602106]
[1751704647667,6.7928,147.18,147.16,6.7934]
[1751704647866,5.77687165,147.17,147.15,9.15652106]
[1751704648070,6.7928,147.18,147.15,9.15652106]
[1751704648275,5.77665685,147.17,147.15,9.15652106]
[1751704648468,6.7928,147.18,147.15,9.15652106]
[1751704648669,5.77659992,147.17,147.15,9.15652106]
[1751704648970,6.7932,147.17,147.15,9.15652106]
[1751704649773,6.7929,147.18,147.15,9.15652106]
[1751704649976,5.78800803,147.17,147.16,9.15632106]
[1751704650171,6.30398022,147.21,147.14,46.2]
[1751704650375,5.78839458,147.2,147.17,2.36262106]
[1751704650574,12.58089458,147.19,147.17,2.36262106]
[1751704650775,5.78839458,147.18,147.17,2.36262106]
[1751704652775,5.78839458,147.18,147.17,9.15582106]
[1751704652971,5.78839458,147.18,147.17,2.36262106]
[1751704653981,5.78839458,147.18,147.17,9.15582106]
[1751704654181,46.5,147.23,147.17,2.36147612]
[1751704654374,5.78425891,147.22,147.19,2.36147612]
[1751704654575,5.78425891,147.21,147.19,2.36147612]
[1751704654778,5.78425891,147.2,147.19,2.36147612]
[1751704654979,5.78425891,147.2,147.14,46.2]
[1751704655179,48.86147612,147.23,147.19,2.36147612]
[1751704655375,6.7914,147.21,147.19,2.36147612]
[1751704655674,5.78498192,147.2,147.19,2.36147612]
[1751704656580,5.78498192,147.2,147.19,9.15377612]
[1751704658581,5.78498192,147.2,147.19,6.7923]
[1751704658786,5.78498192,147.2,147.19,9.15377612]
[1751704659585,4.6744,147.24,147.2,6.7917]
[1751704659888,5.80081104,147.23,147.21,2.36070687]
[1751704660182,5.80081104,147.22,147.21,2.36070687]
[1751704663894,12.59171104,147.22,147.21,2.36070687]
[1751704664393,12.10479126,147.22,147.18,2.36070687]
[1751704664594,6.7921,147.2,147.18,2.36070687]
[1751704664792,5.80081104,147.19,147.18,2.36070687]
[1751704665195,12.59311104,147.19,147.17,2.36070687]
[1751704665395,5.80081104,147.18,147.17,2.36070687]
[1751704665591,5.80081104,147.18,147.16,2.36070687]
[1751704665895,12.59441104,147.17,147.15,2.36070687]
[1751704666095,6.7936,147.17,147.15,2.36070687]
[1751704666290,6.7936,147.17,147.16,2.36070687]
[1751704666495,5.81929443,147.17,147.16,2.36070687]
[1751704667295,5.81929443,147.17,147.16,9.15440687]
[1751704668398,5.81929443,147.17,147.14,46.2]
[1751704668694,6.793,147.18,147.16,2.36070687]
[1751704668894,5.81898137,147.17,147.16,2.36070687]
[1751704670587,5.81898137,147.17,147.16,9.15440687]
[1751704672394,5.81898137,147.17,147.16,6.7937]
[1751704672598,5.81898137,147.17,147.16,9.15440687]
[1751704677302,6.7928,147.18,147.16,9.15440687]
[1751704677602,5.75037325,147.17,147.16,2.36070687]
[1751704684001,5.75037325,147.17,147.15,6.7939]
[1751704684206,6.7928,147.18,147.16,2.36070687]
[1751704684407,12.53813659,147.17,147.16,2.36070687]
[1751704684807,5.74493659,147.17,147.16,2.36070687]
[1751704689910,5.74493659,147.17,147.16,9.15440687]
[1751704690907,6.30398022,147.21,147.18,6.7927]
[1751704691107,10.30905578,147.2,147.18,9.15340687]
[1751704691306,5.74881589,147.19,147.18,9.15340687]
[1751704691507,5.74881589,147.19,147.18,2.36156119]
[1751704692108,5.74881589,147.19,147.17,9.15456119]
[1751704692311,5.74881589,147.18,147.17,9.15456119]
[1751704692611,5.75469495,147.18,147.17,2.36156119]
[1751704692807,5.75469495,147.18,147.16,6.7935]
[1751704693010,5.75469495,147.17,147.15,2.36156119]
[1751704693209,6.7935,147.17,147.15,2.36156119]
[1751704693410,5.75394927,147.16,147.15,2.36156119]
[1751704694204,6.7935,147.17,147.15,2.36156119]
[1751704694810,6.7935,147.17,147.15,2.36268133]
[1751704703319,6.7935,147.17,147.14,52.9943]
[1751704703520,6.7935,147.17,147.15,2.36268133]
[1751704703821,6.7929,147.18,147.15,9.15678133]
[1751704704020,4.6755,147.19,147.17,2.36268133]
[1751704704214,5.73381555,147.18,147.14,46.2]
[1751704704520,5.73381555,147.17,147.14,46.2]
[1751704704713,6.7927,147.18,147.16,9.15541077]
[1751704704914,5.73410933,147.17,147.16,9.15541077]
[1751704705110,5.73410933,147.17,147.16,2.36201077]
[1751704705418,12.52730933,147.17,147.16,2.36201077]
[1751704708022,5.73410933,147.17,147.16,2.36201077]
[1751704708816,5.73410933,147.17,147.16,9.15571077]
[1751704709814,5.73410933,147.17,147.15,6.794]
[1751704710022,5.73410933,147.16,147.15,6.794]
[1751704710215,5.73410933,147.16,147.15,9.15601077]
[1751704710415,12.52780933,147.16,147.14,46.2]
[1751704710616,6.7937,147.16,147.15,2.36201077]
[1751704710811,12.53828113,147.16,147.15,2.36201077]
[1751704713118,5.74458113,147.16,147.15,2.36201077]
[1751704714224,12.53828113,147.16,147.15,2.36201077]
[1751704715519,12.53941975,147.16,147.15,2.36201077]
[1751704717525,5.74571975,147.16,147.15,9.15611077]
[1751704720324,5.74571975,147.16,147.15,6.51812154]
[1751704720527,10.70489258,147.16,147.15,6.51812154]
[1751704725427,5.74571975,147.16,147.15,6.51812154]
[1751704730734,10.7310893,147.16,147.15,6.51812154]
[1751704731130,10.7310893,147.16,147.12,195.94]
[1751704731331,6.31185262,147.18,147.15,2.36201077]
[1751704731533,17.19326904,147.17,147.15,2.36201077]
[1751704731732,10.88141642,147.16,147.15,2.36201077]
[1751704732525,17.67511642,147.16,147.15,2.36201077]
[1751704733533,6.7942,147.15,147.14,2.36201077]
[1751704733735,17.67561642,147.15,147.14,2.36201077]
[1751704734437,10.88141642,147.15,147.14,2.36201077]
[1751704735036,17.67551642,147.15,147.14,2.36201077]
[1751704736634,10.88141642,147.15,147.14,2.36201077]
[1751704739441,5.89600742,147.15,147.14,2.36201077]
[1751704739732,10.86081381,147.15,147.14,9.15661077]
[1751704739940,5.89600742,147.15,147.14,9.15661077]
[1751704744146,6.7925,147.19,147.15,6.7939]
[1751704744444,19.94673842,147.18,147.17,2.36201077]
[1751704748352,13.15403842,147.18,147.17,2.36201077]
[1751704748549,20.95876521,147.23,147.17,2.36201077]
[1751704748756,586.74,147.33,147.22,2.36201077]
[1751704748757,13.12860608,147.28,147.22,2.36201077]
[1751704748958,13.12860608,147.28,147.24,2.36201077]
[1751704749252,7.10711077,147.28,147.24,2.36201077]
[1751704749659,9.1935,147.25,147.24,2.36201077]
[1751704750954,6.7892,147.26,147.24,2.36201077]
[1751704751359,6.7892,147.26,147.24,2.3597065]
[1751704751852,6.7892,147.26,147.23,10.47733486]
[1751704753056,6.7892,147.26,147.23,3.68703486]
[1751704757864,6.7892,147.26,147.23,10.47743486]
[1751704759270,6.7892,147.26,147.23,3.68703486]
[1751704763575,6.7897,147.25,147.23,3.68703486]
[1751704764872,6.7893,147.26,147.23,10.47743486]
[1751704765471,6.7895,147.25,147.23,3.68703486]
[1751704766872,6.7895,147.25,147.23,10.47743486]
[1751704768968,6.7895,147.25,147.23,3.68703486]
[1751704769276,6.7895,147.25,147.22,6.7907]
[1751704769478,6.7895,147.25,147.22,10.47773486]
[1751704771879,6.7895,147.25,147.24,2.35972963]
[1751704772479,5.78933774,147.25,147.22,2.35972963]
[1751704772679,5.78933774,147.24,147.22,2.35972963]
[1751704772879,2.35972963,147.27,147.22,2.35972963]
[1751704773088,5.78933958,147.26,147.22,2.35972963]
[1751704773373,2.35972963,147.27,147.22,2.35972963]
[1751704773374,6.7907,147.23,147.22,2.35972963]
[1751704773982,4.7451,147.28,147.22,2.35972963]
[1751704774187,5.79034632,147.27,147.25,2.35972963]
[1751704774384,5.79034632,147.26,147.25,2.35972963]
[1751704774584,12.57944632,147.26,147.25,2.35972963]
[1751704774780,5.79034632,147.26,147.24,2.35972963]
[1751704774985,4.7451,147.28,147.24,2.35972963]
[1751704775185,6.7898,147.25,147.24,2.35972963]
[1751704778387,6.7892,147.26,147.24,2.35972963]
[1751704779383,6.7895,147.25,147.24,2.35972963]
[1751704780190,12.57963999,147.25,147.24,2.35972963]
[1751704789597,6.7903,147.24,147.23,2.35972963]
[1751704789786,12.58043999,147.24,147.23,2.35972963]
[1751704790089,12.58013999,147.24,147.23,2.35972963]
[1751704790295,5.79013999,147.24,147.22,2.35972963]
[1751704790592,5.79013999,147.23,147.22,2.35972963]
[1751704790796,12.58093999,147.23,147.22,2.35972963]
[1751704791096,12.58093999,147.23,147.22,2.36044104]
[1751704794393,5.79013999,147.23,147.22,2.36044104]
[1751704795196,10.42601232,147.23,147.22,2.36044104]
[1751704799998,10.39429152,147.23,147.22,2.36044104]
[1751704800201,17.18469152,147.23,147.22,2.36044104]
[1751704804998,10.39429152,147.23,147.22,2.36044104]
[1751704805800,10.39429152,147.23,147.22,9.15134104]
[1751704806603,5.79013999,147.23,147.22,9.15134104]
[1751704814308,5.79013999,147.23,147.22,2.36044104]
[1751704814516,12.67087439,147.23,147.21,2.36044104]
[1751704814709,5.79013999,147.22,147.21,2.36044104]
[1751704815809,5.79013999,147.22,147.21,9.15184104]
[1751704816009,5.79013999,147.22,147.21,2.36044104]
[1751704817513,5.79013999,147.22,147.21,9.15184104]
[1751704817913,5.79013999,147.22,147.21,2.36044104]
[1751704820425,5.79013999,147.22,147.21,9.15184104]
[1751704820618,6.3129308,147.25,147.21,2.36044104]
[1751704820821,6.3129308,147.25,147.24,2.36044104]
[1751704821123,10.92756312,147.25,147.24,2.36044104]
[1751704821526,6.3129308,147.25,147.24,2.36044104]
[1751704822325,13.1022308,147.26,147.24,2.36044104]
[1751704822524,13.1022308,147.26,147.25,2.36044104]
[1751704822727,19.97096111,147.26,147.25,2.36044104]
[1751704825426,15.35703593,147.26,147.25,2.36044104]
[1751704825628,19.97049847,147.26,147.25,2.36044104]
[1751704826431,17.71569334,147.26,147.25,2.36044104]
[1751704826822,17.71569334,147.26,147.23,6.7902]
[1751704827027,6.7895,147.25,147.24,2.36044104]
[1751704827431,11.43738144,147.25,147.24,2.36044104]
[1751704827634,4.64788144,147.25,147.22,2.36044104]
[1751704827930,6.90380002,147.24,147.22,2.36044104]
[1751704828128,4.64788144,147.23,147.22,2.36044104]
[1751704829630,11.43828144,147.23,147.22,2.36044104]
[1751704832636,17.22909566,147.23,147.22,2.36044104]
[1751704834635,10.43869566,147.23,147.22,2.36044104]
[1751704834829,5.79081422,147.23,147.22,2.36044104]
[1751704835431,5.77380501,147.23,147.22,9.15104104]
[1751704839343,5.77380501,147.23,147.21,6.7912]
[1751704839536,6.31081173,147.27,147.21,6.7912]
[1751704839537,6.31081173,147.27,147.22,2.36044104]
[1751704839736,12.68537959,147.26,147.24,2.36044104]
[1751704840041,17.21887547,147.25,147.24,2.36044104]
[1751704841437,17.21887547,147.25,147.22,6.7908]
[1751704841638,5.78469767,147.24,147.23,2.36044104]
[1751704844743,5.78469767,147.24,147.22,6.7908]
[1751704844944,6.7896,147.25,147.23,2.36044104]
[1751704845145,5.78584322,147.24,147.23,2.36044104]
[1751704845447,5.78584322,147.24,147.22,6.7908]
[1751704845645,5.78584322,147.23,147.22,6.7908]
[1751704845847,5.78584322,147.23,147.22,9.15124104]
[1751704847146,5.78584322,147.23,147.19,46.22]
[1751704847346,6.31081173,147.26,147.22,2.36044104]
[1751704847547,6.31081173,147.24,147.22,2.36044104]
[1751704847746,17.27257871,147.23,147.22,2.36044104]
[1751704847948,17.27257871,147.23,147.2,6.7916]
[1751704848144,6.7904,147.23,147.22,2.36044104]
[1751704848446,17.27224192,147.23,147.22,2.36044104]
[1751704852249,10.48184192,147.23,147.22,2.36044104]
[1751704852450,5.81557045,147.23,147.22,2.36044104]
[1751704855358,5.81557045,147.23,147.22,9.15134104]
[1751704858760,5.81557045,147.23,147.21,6.7911]
[1751704859056,6.31081173,147.25,147.22,2.3599097]
[1751704859258,10.47414035,147.24,147.23,2.3599097]
[1751704860261,4.6536098,147.24,147.23,2.3599097]
[1751704860461,10.47425881,147.24,147.23,2.3599097]
[1751704860664,10.47425881,147.24,147.21,6.7911]
[1751704860859,5.82064901,147.23,147.22,2.3599097]
[1751704861759,5.82069168,147.23,147.22,2.3599097]
[1751704861964,10.48393485,147.23,147.22,2.3599097]
[1751704862459,17.27433485,147.23,147.22,2.3599097]
[1751704863864,17.2743353,147.23,147.22,2.3599097]
[1751704865260,17.2743353,147.23,147.2,6.7916]
[1751704865468,6.7904,147.23,147.22,2.3599097]
[1751704865665,17.27342177,147.23,147.22,2.3599097]
[1751704868160,17.27342177,147.23,147.2,6.7916]
[1751704868360,6.7904,147.23,147.22,2.3599097]
[1751704868556,17.25191929,147.23,147.22,2.3599097]
[1751704870071,17.25237767,147.23,147.22,2.3599097]
[1751704870667,17.25237767,147.23,147.22,2.36027805]
[1751704873867,17.24020165,147.23,147.2,6.7916]
[1751704874065,5.80675662,147.22,147.19,46.22]
[1751704874264,5.80675662,147.21,147.19,2.36027805]
[1751704874470,5.80675662,147.2,147.15,632.66]
[1751704874663,6.30916449,147.24,147.19,2.36027805]
[1751704874863,6.30916449,147.24,147.23,2.36027805]
[1751704875065,12.6986932,147.24,147.23,2.36027805]
[1751704875567,12.69940569,147.24,147.23,2.36027805]
[1751704875768,10.45084154,147.24,147.23,2.36027805]
[1751704877166,10.45084154,147.24,147.15,632.66]
[1751704877366,19.00777189,147.23,147.2,2.36100135]
[1751704877566,12.6986074,147.22,147.2,2.36100135]
[1751704877765,5.80731011,147.21,147.2,2.36100135]
[1751704879272,5.80731011,147.21,147.18,6.7924]
[1751704879474,5.80731011,147.2,147.18,6.7924]
[1751704879672,6.7911,147.22,147.19,2.36100135]
[1751704879873,6.7911,147.22,147.21,2.36100135]
[1751704880074,17.26006252,147.22,147.21,2.36100135]
[1751704880977,17.26006252,147.22,147.18,6.7924]
[1751704881174,5.81643865,147.21,147.18,6.7924]
[1751704881375,6.7911,147.22,147.2,2.36100135]
[1751704881570,6.7911,147.22,147.21,2.36100135]
[1751704881770,10.47857281,147.22,147.21,2.36100135]
[1751704882170,4.65241978,147.22,147.21,2.36100135]
[1751704882375,10.47835957,147.22,147.19,6.7923]
[1751704882576,6.30754593,147.23,147.21,2.36100135]
[1751704882772,10.46853307,147.22,147.21,2.36100135]
[1751704883372,17.25943307,147.22,147.21,2.36100135]
[1751704883678,17.25943307,147.22,147.2,2.36100135]
[1751704883871,5.82616425,147.21,147.2,2.36100135]
[1751704888283,5.82616425,147.21,147.2,9.15280135]
[1751704888581,8.38350608,147.25,147.2,2.36100135]
[1751704888582,6.30754593,147.25,147.2,2.36100135]
[1751704888780,4.64420133,147.24,147.23,6.7904]
[1751704889076,4.64420133,147.24,147.23,2.36100135]
[1751704889077,5.81838061,147.24,147.23,2.36100135]
[1751704889278,6.31208809,147.28,147.25,6.7891]
[1751704889483,4.64441588,147.27,147.26,2.36100135]
[1751704889786,6.89289746,147.27,147.25,9.15040135]
[1751704889985,4.6438387,147.26,147.25,9.15040135]
[1751704890182,6.31208809,147.29,147.25,2.36100135]
[1751704890493,8.68178809,147.31,147.28,2.36100135]
[1751704890686,6.89182255,147.3,147.25,46.28]
[1751704890881,4.64324764,147.29,147.27,6.7883]
[1751704891087,8.68072958,147.31,147.25,46.28]
[1751704891285,2.3697,147.31,147.25,46.28]
[1751704891891,4.63942974,147.3,147.25,46.28]
[1751704892092,8.68072958,147.31,147.27,3.68473781]
[1751704892394,4.63965811,147.3,147.27,10.47303781]
[1751704892587,15.46752958,147.31,147.27,10.47303781]
[1751704892786,4.63763815,147.3,147.27,10.47303781]
[1751704893388,15.46752958,147.31,147.27,10.47303781]
[1751704894289,9.1565,147.31,147.27,10.47303781]
[1751704894493,9.1565,147.31,147.28,6.7881]
[1751704897196,2.3697,147.31,147.28,6.7881]
[1751704897797,9.1567,147.31,147.28,6.7881]
[1751704899099,11.46150755,147.3,147.27,6.7884]
[1751704899291,2.3697,147.31,147.26,3.68473781]
[1751704899597,6.788,147.29,147.26,10.47353781]
[1751704900997,6.7882,147.28,147.25,53.0693]
[1751704901201,5.8102181,147.27,147.25,53.0693]
[1751704901497,6.7886,147.27,147.25,53.0693]
[1751704901803,6.7886,147.27,147.25,46.28]
[1751704902102,6.7886,147.27,147.24,10.47443781]